Cogmind - Beta 14 @@@ ROGUE MODE // 2024.11.28 @ 22:22:38 Player: opdo Result: Destroyed by Autobeam Turret with Autobeam Performance ------------- Evolutions (0) 0 Regions Visited (2) 400 Robots Destroyed (22) 110 Value Destroyed (560) 560 Prototype IDs (13) 260 Alien Tech Used (0) 0 Bonus (0) 0 TOTAL SCORE: 1330 Bonus ------- None Cogmind --------- Core Integrity 0/250 Matter 197/300 Energy 182/200 System Corruption 0% Temperature Cool (6) Movement Core (200) Ox3 Location -10/Subcaves Parts ------- > --- POWER (1) -------- Subdweller Power Source > --- PROPULSION (2) --- (None) > --- UTILITY (2) ------ Core Shielding > --- WEAPON (2) ------- Subdweller Laser > --- INVENTORY (5) ---- Subdweller Optics Makeshift Light Armor Plating Hacking Suite Power Bank Mining Claw Peak State ------------ > --- POWER ------------ Subdweller Power Source > --- PROPULSION ------- Compact Wheel Subdweller Monowheel > --- UTILITY ---------- Small Storage Unit Core Shielding > --- WEAPON ----------- Subdweller Laser Subdweller Beam Cannon > --- INVENTORY -------- Subdweller Optics Improved Terrain Scanner Makeshift Light Armor Plating Hacking Suite Power Bank Mining Claw [Rating: 13] Favorites ----------- Power Subdweller Power Source Engine Subdweller Power Source Propulsion Aluminum Leg Leg Aluminum Leg Wheel Subdweller Monowheel Utility Small Storage Unit Device Seismic Detector Storage Small Storage Unit Protection Core Shielding Weapon Light Assault Rifle Energy Gun Subdweller Laser Energy Cannon Subdweller Beam Cannon Ballistic Gun Light Assault Rifle Launcher Grenade Launcher Slashing Weapon Mining Claw Build | -11 -10 -10 ------- Run | Yrd Mat Sub Slots Evolved . | . . . Power . | . . . Propulsion . | . . . Utility . | . . . Weapon . | . . . Parts Attached 31 | 7 12 12 Power 4 | 1 1 2 Engine 4 | 1 1 2 Core . | . . . Reactor . | . . . Propulsion 6 | 2 2 2 Treads . | . . . Leg 4 | 2 2 . Wheel 2 | . . 2 Hover . | . . . Flight . | . . . Utility 4 | 2 2 . Device 1 | 1 . . Storage 1 | 1 . . Processor . | . . . Hackware . | . . . Protection 2 | . 2 . Artifact . | . . . Weapon 17 | 2 7 8 Energy Gun 1 | . . 1 Energy Cannon 2 | . . 2 Ballistic Gun 9 | 2 5 2 Ballistic Cannon . | . . . Launcher 2 | . 1 1 Special Weapon . | . . . Impact Weapon . | . . . Slashing Weapon 3 | . 1 2 Piercing Weapon . | . . . Special Melee Weapon . | . . . Unidentified Prototypes . | . . . Parts Lost 11 | . 4 7 Power 2 | . 1 1 Propulsion 3 | . . 3 Utility 1 | . 1 . Weapon 5 | . 2 3 Highest Loss Streak 5 | . 4 5 To Critical Strikes . | . . . Average Slot Usage (%) 96 | . 95 96 Engine 13 | . 13 13 Leg 22 | . 28 18 Wheel 3 | . . 7 Device 1 | . 3 . Storage 14 | . 14 14 Protection 11 | . 7 14 Energy Gun 2 | . . 4 Energy Cannon 2 | . . 3 Ballistic Gun 15 | . 25 7 Launcher 3 | . . 5 Slashing Weapon 4 | . 1 5 Peak Build Rating 13 | 7 8 13 Average Rating 8 | 5 7 10 On Entrance 5 | . 7 8 Naked Turns . | . . . Heaviest Build 23 | 14 16 23 Greatest Support 20 | 20 20 20 Greatest Overweight (x) 7 | 3 . 7 Average Overweight (x) . | . . . Largest Inventory Capacity 8 | 8 8 8 Average Capacity 7 | 7 8 7 Most Carried 8 | 5 8 8 Average Carried 7 | 3 7 7 Final Capacity 8 | 8 8 5 Final Carried 8 | 5 8 5 Class Distribution -------------------- 76% | Mutant 23% | Scavenger-Mutant Dominant Class ---------------- Mutant | -10/Materials Mutant | -10/Subcaves Resources | -11 -10 -10 ----------- Run | Yrd Mat Sub Matter Collected 637 | 302 81 254 Remotely . | . . . Salvage Created 658 | 141 342 175 Parts 38 | 7 23 8 Haulers Intercepted . | . . . Recyclers Shooed . | . . . Parts Field Recycled . | . . . Retrieved Matter . | . . . Parts Self-Destructed 11 | . . 11 Prevented . | . . . Kills | -11 -10 -10 ------- Run | Yrd Mat Sub Combat Hostiles Destroyed 15 | . 11 4 Melee 1 | . . 1 Guns 9 | . 7 2 AOE 4 | . 4 . Classes Destroyed 9 | 2 5 2 Worker 1 | . 1 . Builder 1 | . 1 . Tunneler 2 | 2 . . Recycler 1 | 1 . . Operator 1 | . 1 . Turret 1 | . . 1 Swarmer 3 | . 3 . Grunt 8 | . 8 . Subdweller 4 | . . 4 Best Kill Streak 9 | 2 9 2 Combat Bots Only 8 | . 8 2 Max Kills in Single Turn 2 | 1 2 1 Gunslinging . | . . . Exploded 2 | . 2 . Melee 1 | . . 1 Uniques/NPCs Destroyed . | . . . Combat | -11 -10 -10 -------- Run | Yrd Mat Sub Hostile Shots Fired 180 | . 68 112 Missed 67 | . 18 49 Damage Taken 1492 | . 638 854 Core 252 | . 110 142 Absorbed by Shields . | . . . Redirected to Shielding 26 | . . 26 Core Remaining (%) 100 | 100 . . Volleys Fired 78 | 8 45 25 Largest 2 | 2 2 2 Hottest 140 | 40 50 140 Shots Fired 141 | 16 90 35 Gun 128 | 16 86 26 Cannon 7 | . . 7 Launcher 6 | . 4 2 Special . | . . . Kinetic 120 | 16 86 18 Thermal 15 | . . 15 Explosive 6 | . 4 2 Electromagnetic . | . . . Robot Hit Streak 17 | 3 17 9 Robot Miss Streak 3 | 3 3 3 Penetration Max . | . . . Secondary Targets 4 | . 4 . Max Gunslinging Chain 1 | . 1 . Shots Hit Robots 95 | 6 59 30 Core Hits 44 | 5 29 10 Critical Kills 1 | . . 1 Critical Parts Destroyed 1 | . . 1 Critical Strikes 2 | . . 2 Meltdown 1 | . . 1 Destroy 1 | . . 1 Melee Attacks 44 | . 19 25 Impact . | . . . Slashing 44 | . 19 25 Piercing . | . . . Sneak Attacks 2 | . 2 . Combat Hostiles . | . . . Follow-up Attacks . | . . . Damage Inflicted 1803 | 88 1004 711 Guns 1018 | 86 537 395 Cannons 135 | . . 135 Explosions 508 | . 371 137 Melee 140 | . 96 44 Ramming 2 | 2 . . Kinetic 938 | 86 537 315 Thermal 215 | . . 215 Explosive 508 | . 371 137 Electromagnetic . | . . . Impact . | . . . Slashing 140 | . 96 44 Piercing . | . . . Highest Corruption . | . . . Average Corruption . | . . . Corruption Purged . | . . . Corruption Blocked . | . . . Overload Shots . | . . . Overflow Damage 28 | . 28 . Projectiles . | . . . Explosions . | . . . Melee 28 | . 28 . Knockbacks . | . . . Impact . | . . . Kinetic . | . . . Secondary . | . . . Self-Inflicted Damage 20 | . 20 . Shots 1 | . 1 . Rammed . | . . . Targets Rammed 2 | 2 . . Kicked 2 | 2 . . Crushed . | . . . Highest Temperature 252 | . 36 252 Average Temperature 51 | . 12 138 Received Heat Transfer 570 | . 225 345 Siege Activations . | . . . Robots Corrupted . | . . . Combat Hostiles . | . . . Parts Fried . | . . . Impact Corruptions . | . . . Robots Melted 1 | . . 1 Combat Hostiles 1 | . . 1 Parts Melted . | . . . Heat Transferred 285 | . . 285 Parts Sabotaged . | . . . Parts Stolen . | . . . Parts Stripped . | . . . Power Chain Reactions . | . . . Alert | -11 -10 -10 ------- Run | Yrd Mat Sub Peak Influence 368 | 15 368 . Initial 9 | . 9 . Average 130 | 5 149 . Maximum Alert Level 1 | . 1 . Low Security (%) 89 | 100 87 . Level 1 10 | . 12 . Level 2 . | . . . Level 3 . | . . . Level 4 . | . . . Level 5 . | . . . High Security . | . . . Max Security . | . . . Squads Dispatched 2 | . 2 . Investigation . | . . . Extermination . | . . . Reinforcement 2 | . 2 . Assault . | . . . Garrison . | . . . Intercept . | . . . Searches Triggered . | . . . Construction Impeded . | . . . Haulers Reinforced . | . . . Active Scanning Responses . | . . . Cargo Convoy Interrupts . | . . . Stealth | -11 -10 -10 --------- Run | Yrd Mat Sub Distress Signals 1 | . 1 . Communications Jammed . | . . . Distress Signals . | . . . Times Spotted 37 | . 23 14 Peak Tracking Total 8 | . 6 8 Tactical Retreats 4 | . 1 3 Traps | -11 -10 -10 ------- Run | Yrd Mat Sub Traps Triggered 1 | . . 1 Indirectly . | . . . Trap Hack Attempts . | . . . Triggered . | . . . Disarmed . | . . . Reprogrammed . | . . . Reused . | . . . Traps Extracted . | . . . Installed . | . . . Triggered . | . . . Machines | -11 -10 -10 ---------- Run | Yrd Mat Sub Machines Disabled 2 | . . 2 Max in Single Turn 1 | . . 1 Machines Repaired . | . . . Machines Dismantled . | . . . Machines Sabotaged . | . . . Overloaded Fab Kills . | . . . Hacking | -11 -10 -10 --------- Run | Yrd Mat Sub Machines Accessed 7 | . 6 1 Terminals 6 | . 6 . Fabricators . | . . . Repair Stations . | . . . Recycling Units . | . . . Scanalyzers . | . . . Garrison Access . | . . . Total Hacks 17 | . 16 1 Successful 11 | . 10 1 Failed 6 | . 6 . Catastrophic . | . . . Database Lockouts . | . . . Manual 12 | . 12 . Terminals 16 | . 16 . Fabricators . | . . . Repair Stations . | . . . Recycling Units . | . . . Scanalyzers . | . . . Garrison Access . | . . . Terminal Hacks 6 | . 5 1 Robot Analysis 2 | . 2 . Prototype ID Bank 1 | . 1 . Alert Level 1 | . 1 . Zone Layout 1 | . 1 . Derelict Proto ID Bank 1 | . . 1 Fabricator Hacks . | . . . Repair Station Hacks . | . . . Recycling Unit Hacks . | . . . Scanalyzer . | . . . Garrison Access Hacks . | . . . Unauthorized Hacks 5 | . 5 . Terminals 5 | . 5 . Botnet 4 | . 4 . Operators 1 | . 1 . Fabricators . | . . . Repair Stations . | . . . Recycling Units . | . . . Scanalyzers . | . . . Garrison Access . | . . . Data Cores Recovered . | . . . Used . | . . . Hacking Detections 6 | . 6 . Full Trace Events 1 | . 1 . Feedback Events . | . . . Feedback Blocked . | . . . Robot Schematics Acquired . | . . . Robots Built . | . . . Authchips . | . . . Time . | . . . Total Robot Build Rating . | . . . Part Schematics Acquired . | . . . Parts Built . | . . . Authchips . | . . . Time . | . . . Total Part Build Rating . | . . . Parts Repaired . | . . . Time . | . . . Parts Recycled . | . . . Recycled Matter . | . . . Retrieved Matter . | . . . Retrieved Components . | . . . Parts Scanalyzed . | . . . Part Schematics Acquired . | . . . Parts Damaged . | . . . Bothacking | -11 -10 -10 ------------ Run | Yrd Mat Sub Used RIF Installer . | . . . Robots Hacked . | . . . Non-combat . | . . . Combat . | . . . Robot Hacks Applied . | . . . Relay Couplers Released . | . . . Fabnet Peak Effective % . | . . . Robots Rewired . | . . . Allies Hacked . | . . . Hacks Repelled . | . . . Allies | -11 -10 -10 -------- Run | Yrd Mat Sub Total Allies . | . . . Largest Group . | . . . Highest-Rated Group . | . . . Highest-Rated Ally . | . . . Total Orders . | . . . Ally Attacks . | . . . Total Damage . | . . . Kills . | . . . Allies Corrupted . | . . . Allies Melted . | . . . Intel | -11 -10 -10 ------- Run | Yrd Mat Sub Robot Analysis Total 2 | . 2 . Derelict Logs Recovered . | . . . Drone Launches . | . . . Drone Recoveries . | . . . Exploration | -11 -10 -10 ------------- Run | Yrd Mat Sub Turns Passed 1696 | 109 705 882 Spaces Moved 1072 | 54 415 603 Core 10 | 6 . 4 Treads . | . . . Legs 888 | 48 415 425 Wheels 174 | . . 174 Hover . | . . . Flight . | . . . Fastest Speed 50 | 50 120 110 Average Speed 120 | 128 120 120 Slowest Speed 400 | 200 120 400 Overloaded Moves . | . . . Propulsion Burnouts . | . . . Robots Hopped . | . . . Cave-ins Triggered . | . . . Exploration Rate (%) 42 | 3 85 39 Regions Visited 2 Branch Regions 1 Pre-discovered Areas . | . . . Known Exits Taken . | . . . Unknown Exits Taken 2 | 1 1 . Scrap Searched 2 | . . 2 Spaces Dug . | . . . Terrain Destroyed 29 | . 13 16 Melee . | . . . Projectile . | . . . AOE 29 | . 13 16 Terrain Rammed . | . . . Walls Destroyed . | . . . Machines Disabled . | . . . Actions | -11 -10 -10 --------- Run | Yrd Mat Sub Total 1253 | 75 501 677 Wait 2 | . 2 . Move 1070 | 53 414 603 Hop . | . . . Pick Up 15 | 5 6 4 Fast Attach 13 | 7 2 4 Attach 4 | . 2 2 Detach . | . . . Swap 14 | . 8 6 Drop 11 | . 3 8 Fire 78 | 8 45 25 Melee 44 | . 19 25 Ram . | . . . Kick 2 | 2 . . Crush . | . . . Escape Stasis . | . . . Rewire . | . . . Trap . | . . . Miscellaneous . | . . . Route ------- -11/Scrapyard -10/Materials (discovered 4 exits: [*Mat x2] / [*Min] / *Sub) -10/Subcaves (discovered 2 exits: [*Mat] / [*Rec]) History --------- Turn | Location | Event 12 | -11/Scrapyard | Discovered new exit (range 14) 110 | -11/Scrapyard | Entered Materials 309 | -10/Materials | Build established: Mutant 334 | -10/Materials | Discovered new exit (range 10) 388 | -10/Materials | Discovered new exit (range 6) 501 | -10/Materials | Destroyed 8 combat bots 515 | -10/Materials | Lost 4 parts (1p1u2w) 534 | -10/Materials | Discovered new exit (range 12) 810 | -10/Materials | Discovered new exit (range 3) 815 | -10/Materials | Entered Subcaves 821 | -10/Subcaves | Discovered new exit (range 4) 1002 | -10/Subcaves | Core integrity fell below 50% 1135 | -10/Subcaves | Visited 4L-MR0's lab 1147 | -10/Subcaves | Found Power Bank 1250 | -10/Subcaves | Disturbed a concealed Subdweller 1417 | -10/Subcaves | Core integrity fell below 20% 1453 | -10/Subcaves | Lost 5 parts (1p2n2w) 1560 | -10/Subcaves | Build established: Scavenger-Mutant 1657 | -10/Subcaves | Discovered new exit (range 15) 1697 | -10/Subcaves | Destroyed by Autobeam Turret with Autobeam Last Messages --------------- Aluminum Leg destroyed. X8-SG0(R) destroyed. Broken Sub. Power Source destroyed. Sub. Machine Gun destroyed. Acquired Sub. Beam Cannon. D4-4WP(R) suffers critical hit (Meltdown). Acquired 38 matter. Acquired Sub. Laser. Acquired Sub. Power Source. Acquired 40 matter. Sub. Monowheel shoots sparks and powers down. YL-WOE(u) builds Twisted Machinery. EXIT=FOUND Machine disabled. Autobeam Turret destroyed. Com. Wheel destroyed. Dropped Broken Sub. Monowheel. Dropped Sub. Beam Cannon. Dropped Sml. Storage Unit. Acquired 15 matter. Map ----- +----------------------------------------------------+ | #???????????????????????????????????????????? | | &!&##??????????????????????????????????????????? | | ### #??????????????????????????????????????????? | | #?#& #??????????????????????????????????????????? | | ??### #??????????????????????????????????????????? | | ????# #??????????????????????????????????????????? | | ????###??????????????????????????????????????????? | | ?????????????????????????????????????????????????? | | ?????????????????????????????????????????????????? | | ?????????????????????????????????????????????????? | | ?????????????????????????????????????????????????? | | ?????????????????????????????????????????????????? | | ?????????????????????????????????????????????????? | | ?????????????????????????????????????????????????? | | ???????###???????????????????????????????????????? | | ??????? ""####???????????????????????????????????? | | ???????""" ""#???????????????????????????????????? | | ???????#"" " #???????????????????????????????????? | | ?######?#""" ##??????????????????????????????????? | | ## "###"" ##?????????????????????????????????? | | ##"" ##????????????????????????????????? | | " "" ##???????????????????????????????? | | # ##????####??????????????????????? | | ###### ## ## ######!]#??????????????????????? | | ?????##### #### ## #!=##### % "#???????????? | | ?????????## #### % @ ""#???????????? | | ?????????# % <#??????????? | | ?????????# ## # t ##??????????? | | ?????????###### ############# "#???????????? | | ?????????????# #????????????? "#???????????? | | ???????????### ##????????????? """#???????????? | | ???????????# # #???????????????##????????????? | | ???????????# # ##?????????????????????????????? | | ???????????## | #?????????????????????????????? | | ????????????## #?????????????????????????????? | | ????????????# = ##?????????????????????????????? | | ????????????# ##????????????????????????????? | | ????????????## #????????????????????????????? | | ?????????????# #????????????????????????????? | | ?????????????## #????????????????????????????? | | ??????????????### ##????????????????????????????? | | ???????????????# #?????????????????????????????? | | ???????????????## ##????????????????????????????? | | ???????????????## #????????????????????????????? | | ???????????????# ##????????????????????????????? | | ???????????????## #????????????????????????????? | | ???????????????# ##????????????????????????????? | | ???????????????# #????????????????????????????? | | ???????????????## #????????????????????????????? | | ???????????????# ##????????????????????????????? | +----------------------------------------------------+ Best States ------------- Heat Dissipation 25 Energy Generation 15 Energy Capacity 250 Matter Stores 300 Matter Capacity 300 Sight Range 16 Terrain Scan Density 10 Armor Coverage 150 Core Shielding 20 Evasion (%) 55 Item Schematics ----------------- None Robot Schematics ------------------ None Fabricated ------------ Nothing Alien Tech Used ----------------- None Achievements -------------- None Challenges ------------ None Game ------ Seed BeamUltimateThrower Manual? 0 Play Time 00:14:26 Cumulative 59.2 hours Start 2024.11.28 @ 22:07:49 End 2024.11.28 @ 22:22:38 Sessions 1 Manual Loads 0 Difficulty Rogue Special Mode None Game No. 177 Rogue 175 Adventurer 2 Explorer 0 Win Type - Total 0 Types 0/0/0/0/0/0/0/0/0 Lore% 54 Gallery% 51 Achievement% 37 Wizard Run 0 Options --------- Layout 2 ASCII 0 Keyboard 0 Movement Arrows Keybinds 0 Fullscreen 2 Font 24/Smallcaps Map View 50x44 Zoom Use 0% Tactical HUD 0 Map Filters NONE Filters NONE Steam 1 RUN: 8e45f2e7-707b-44ef-a69e-a68ee94dfa24